fUST/lending_fUST_20241112
["ID","MTS","AMOUNT","RATE_DAILY","PERIOD"]
[342086299,1731426494629,-92.23376174,0.00021917,2]
[342086300,1731426494644,-150.0,0.00021917,2]
[342086301,1731426494655,-257.76623826,0.00021917,2]
[342086302,1731426494665,-63.21376174,0.00021918,2]
[342086303,1731426494679,-106.27662826,0.00021918,2]
[342086304,1731426494688,-438.80330665,0.00021972,2]
[342086305,1731426494699,-61.19669335,0.00021972,2]
[342086306,1731426494708,-439.3031725,0.00021973,2]
[342086307,1731426494724,-60.6968275,0.00021973,2]
[342086308,1731426494733,-358.83087331,0.00021973,2]
[342086309,1731426494747,-141.16912669,0.00021973,2]
[342086310,1731426494756,-64.89259035,0.00021973,2]
[342086311,1731426494768,-198.56042423,0.00021973,2]
[342086312,1731426494785,-236.54698542,0.00021973,2]
[342086313,1731426494794,-263.45301458,0.00021973,2]
[342086314,1731426494805,-236.54698542,0.00021973,2]
[342086315,1731426494814,-273.17556321,0.00021973,2]
[342086316,1731426494825,-226.82443679,0.00021973,2]
[342086317,1731426494835,-273.17556321,0.00021973,2]
[342086318,1731426494855,-226.82443679,0.00021973,2]
[342086319,1731426494864,-273.17556321,0.00021973,2]
[342086320,1731426494880,-226.82443679,0.00021973,2]
[342086321,1731426494890,-211.0,0.00022,2]
[342086322,1731426494899,-62.17556321,0.00022,2]
[342086323,1731426494911,-104.82443679,0.00022,2]
[342086324,1731426494920,-395.17556321,0.00022091,2]
[342086325,1731426494931,-52.40766925,0.00022091,2]
[342086326,1731426494940,-455.74693603,0.00022173,2]
[342086327,1731426494955,-58.21567743,0.00022173,2]
[342086328,1731426494965,-441.78432257,0.00022173,2]
[342086329,1731426494976,-58.21567743,0.00022173,2]
[342086330,1731426494985,-453.77184373,0.00022173,2]
[342086331,1731426494996,-46.22815627,0.00022173,2]
[342086332,1731426495005,-453.77184373,0.00022173,2]
[342086333,1731426495017,-46.22815627,0.00022173,2]
[342086334,1731426495026,-453.77184373,0.00022173,2]
[342086335,1731426495038,-46.22815627,0.00022173,2]
[342086336,1731426495047,-453.77184373,0.00022173,2]
[342086337,1731426495058,-46.22815627,0.00022173,2]
[342086338,1731426495068,-453.77184373,0.00022173,2]
[342086339,1731426495083,-46.22815627,0.00022173,2]
[342086340,1731426495099,-453.77184373,0.00022173,2]
[342086341,1731426495110,-46.22815627,0.00022173,2]
[342086342,1731426495119,-453.77184373,0.00022173,2]
[342086343,1731426495130,-46.22815627,0.00022173,2]
[342086344,1731426495140,-453.77184373,0.00022173,2]
[342086345,1731426495150,-46.22815627,0.00022173,2]
[342086346,1731426495160,-453.77184373,0.0002219,2]
[342086347,1731426495175,-46.22815627,0.0002219,2]
[342086348,1731426495184,-467.36381048,0.0002219,2]
[342086349,1731426495195,-32.63618952,0.0002219,2]
[342086350,1731426495204,-467.36381048,0.0002219,2]
[342086351,1731426495218,-24.13491431,0.0002219,2]
[342086352,1731426495227,-323.58519912,0.00022191,2]
[342086353,1731426495237,-152.27988657,0.00022191,2]
[342086354,1731426495249,-347.72011343,0.00022191,2]
[342086355,1731426495258,-152.27988657,0.00022191,2]
[342086356,1731426495269,-347.72011343,0.00022191,2]
[342086357,1731426495278,-152.27988657,0.00022191,2]
[342086358,1731426495290,-347.72011343,0.00022191,2]
[342086359,1731426495299,-152.27988657,0.00022191,2]
[342086360,1731426495314,-347.72011343,0.00022191,2]
[342086361,1731426495323,-152.27988657,0.00022191,2]
[342086362,1731426495335,-347.72011343,0.00022191,2]
[342086363,1731426495351,-267.71196971,0.00022191,2]
[342086364,1731426495363,-232.28803029,0.00022191,2]
[342086365,1731426495372,-267.71196971,0.00022191,2]
[342086366,1731426495384,-98.84873776,0.00022191,2]
[342086367,1731426495393,-401.15126224,0.00022191,2]
[342086368,1731426495404,-98.84873776,0.00022191,2]
[342086369,1731426495413,-401.15126224,0.00022191,2]
[342086370,1731426495428,-98.84873776,0.00022191,2]
[342086371,1731426495437,-401.15126224,0.00022191,2]
[342086372,1731426495448,-98.84873776,0.00022191,2]
[342086373,1731426495457,-401.15126224,0.00022191,2]
[342086374,1731426495469,-98.84873776,0.00022191,2]
[342086375,1731426495478,-401.15126224,0.00022191,2]
[342086376,1731426495490,-168.08819885,0.00022191,2]
[342086377,1731426495499,-331.91180115,0.00022191,2]
[342086378,1731426495518,-168.08819885,0.00022191,2]
[342086379,1731426495528,-331.91180115,0.00022191,2]
[342086380,1731426495539,-168.08819885,0.00022191,2]
[342086381,1731426495548,-331.91180115,0.00022191,2]
[342086382,1731426495560,-168.08819885,0.00022191,2]
[342086383,1731426495569,-331.91180115,0.00022191,2]
[342086384,1731426495580,-168.08819885,0.00022191,2]
[342086385,1731426495594,-362.0136878,0.00022191,2]
[342086386,1731426495610,-144.6820185,0.00022191,2]
[342086387,1731426495619,-355.3179815,0.00022191,2]
[342086388,1731426495631,-144.6820185,0.00022191,2]
[342086389,1731426495640,-355.3179815,0.00022191,2]
[342086390,1731426495651,-144.6820185,0.00022191,2]
[342086391,1731426495659,-355.3179815,0.00022191,2]
[342086392,1731426495675,-144.6820185,0.00022191,2]
[342086393,1731426495685,-355.3179815,0.00022191,2]
[342086394,1731426495701,-144.6820185,0.00022191,2]
[342086395,1731426495710,-355.3179815,0.00022191,2]
[342086396,1731426495722,-144.6820185,0.00022191,2]
[342086397,1731426495732,-355.3179815,0.00022191,2]
[342086398,1731426495744,-144.6820185,0.00022191,2]
[342086399,1731426495753,-355.3179815,0.00022191,2]
[342086400,1731426495764,-144.6820185,0.00022191,2]
[342086401,1731426495774,-355.3179815,0.00022191,2]
[342086402,1731426495785,-144.6820185,0.00022191,2]
[342086403,1731426495795,-355.3179815,0.00022191,2]
[342086404,1731426495806,-144.6820185,0.00022191,2]
[342086405,1731426495815,-355.3179815,0.00022191,2]
[342086406,1731426495830,-144.6820185,0.00022191,2]
[342086407,1731426495844,-355.3179815,0.00022191,2]
[342086408,1731426495855,-144.6820185,0.00022191,2]
[342086409,1731426495865,-355.3179815,0.00022191,2]
[342086410,1731426495876,-144.6820185,0.00022191,2]
[342086411,1731426495886,-355.3179815,0.00022191,2]
[342086412,1731426495897,-144.6820185,0.00022191,2]
[342086413,1731426495907,-431.6374632,0.00022191,2]
[342086414,1731426495922,-68.3625368,0.00022191,2]
[342086415,1731426495932,-431.6374632,0.00022191,2]
[342086416,1731426495943,-68.3625368,0.00022191,2]
[342086417,1731426495953,-431.6374632,0.00022191,2]
[342086418,1731426495964,-68.3625368,0.00022191,2]
[342086419,1731426495973,-431.6374632,0.00022191,2]
[342086420,1731426495986,-68.3625368,0.00022191,2]
[342086421,1731426495995,-431.6374632,0.00022191,2]
[342086422,1731426496006,-68.3625368,0.00022191,2]
[342086423,1731426496015,-431.6374632,0.00022191,2]
[342086424,1731426496027,-68.3625368,0.00022191,2]
[342086425,1731426496036,-443.4072035,0.00022191,2]
[342086426,1731426496048,-56.5927965,0.00022191,2]
[342086427,1731426496058,-443.4072035,0.00022191,2]
[342086428,1731426496070,-56.5927965,0.00022191,2]
[342086429,1731426496079,-443.4072035,0.00022191,2]
[342086430,1731426496093,-56.5927965,0.00022191,2]
[342086431,1731426496102,-443.4072035,0.00022191,2]
[342086432,1731426496118,-121.42188815,0.00022191,2]
[342086433,1731426496201,-378.57811185,0.00022191,2]
[342086434,1731426496219,-121.42188815,0.00022191,2]
[342086435,1731426496228,-378.57811185,0.00022191,2]
[342086436,1731426496239,-121.42188815,0.00022191,2]
[342086437,1731426496249,-378.57811185,0.00022191,2]
[342086438,1731426496260,-121.42188815,0.00022191,2]
[342086439,1731426496268,-378.57811185,0.00022191,2]
[342086440,1731426496279,-133.02638829,0.00022191,2]
[342086441,1731426496289,-366.97361171,0.00022191,2]
[342086442,1731426496300,-133.02638829,0.00022191,2]
[342086443,1731426496310,-366.97361171,0.00022191,2]
[342086444,1731426496321,-133.02638829,0.00022191,2]
[342086445,1731426496330,-366.97361171,0.00022191,2]
[342086446,1731426496350,-133.02638829,0.00022191,2]
[342086447,1731426496359,-366.97361171,0.00022191,2]
[342086448,1731426496370,-138.31540361,0.00022191,2]
[342086449,1731426496379,-361.68459639,0.00022191,2]
[342086450,1731426496390,-138.31540361,0.00022191,2]
[342086451,1731426496399,-361.68459639,0.00022191,2]
[342086452,1731426496411,-138.31540361,0.00022191,2]
[342086453,1731426496421,-365.68183563,0.00022191,2]
[342086454,1731426496432,-134.31816437,0.00022191,2]
[342086455,1731426496442,-366.54583856,0.00022191,2]
[342086456,1731426496457,-153.16961419,0.00022191,2]
[342086457,1731426496466,-346.83038581,0.00022191,2]
[342086458,1731426496478,-153.16961419,0.00022191,2]
[342086459,1731426496487,-346.83038581,0.00022191,2]
[342086460,1731426496499,-153.16961419,0.00022191,2]
[342086461,1731426496508,-346.83038581,0.00022191,2]
[342086462,1731426496519,-153.16961419,0.00022191,2]
[342086463,1731426496528,-346.83038581,0.00022191,2]
[342086464,1731426496539,-153.16961419,0.00022191,2]
[342086465,1731426496548,-346.83038581,0.00022191,2]
[342086466,1731426496559,-153.16961419,0.00022191,2]
[342086467,1731426496569,-357.23542253,0.00022191,2]
[342086468,1731426496580,-142.76457747,0.00022191,2]
[342086469,1731426496595,-357.23542253,0.00022191,2]
[342086470,1731426496608,-142.76457747,0.00022191,2]
[342086471,1731426496618,-357.23542253,0.00022191,2]
[342086472,1731426496629,-142.76457747,0.00022191,2]
[342086473,1731426496639,-357.23542253,0.00022191,2]
[342086474,1731426496651,-142.76457747,0.00022191,2]
[342086475,1731426496660,-357.23542253,0.00022191,2]
[342086476,1731426496681,-142.76457747,0.00022191,2]
[342086477,1731426496690,-357.23542253,0.00022191,2]
[342086478,1731426496701,-142.76457747,0.00022191,2]
[342086479,1731426496710,-358.12080921,0.00022191,2]
[342086480,1731426496721,-141.87919079,0.00022191,2]
[342086481,1731426496730,-365.53689314,0.00022191,2]
[342086482,1731426496742,-134.46310686,0.00022191,2]
[342086483,1731426496753,-402.51386961,0.00022191,2]
[342086484,1731426496766,-492.08613039,0.00022191,2]
[342086485,1731426496776,-7.91386961,0.00022191,2]
[342086486,1731426496791,-492.08613039,0.00022191,2]
[342086487,1731426496800,-7.91386961,0.00022191,2]
[342086488,1731426496811,-500.0,0.00022191,2]
[342086489,1731426496822,-0.08723504,0.00022191,2]
[342086490,1731426496831,-499.91276496,0.00022191,2]
[342086491,1731426496848,-0.08723504,0.00022191,2]
[342086492,1731426496857,-499.91276496,0.00022191,2]
[342086493,1731426496876,-500.0,0.00022191,2]
[342086494,1731426496888,-500.0,0.00022191,2]
[342086495,1731426496899,-90.95723504,0.00022191,2]
[342086496,1731426496908,-409.04276496,0.00022191,2]
[342086497,1731426496919,-90.95723504,0.00022191,2]
[342086498,1731426496928,-409.04276496,0.00022191,2]
[342086499,1731426496939,-90.95723504,0.00022191,2]
[342086500,1731426496949,-409.04276496,0.00022191,2]
[342086501,1731426496966,-90.95723504,0.00022191,2]
[342086502,1731426496975,-409.04276496,0.00022191,2]
[342086503,1731426496986,-90.95723504,0.00022191,2]
[342086504,1731426496995,-409.04276496,0.00022191,2]
[342086505,1731426497006,-90.95723504,0.00022191,2]
[342086506,1731426497016,-338.94998587,0.00022191,2]
[342086507,1731426497027,-161.05001413,0.00022191,2]
[342086508,1731426497036,-354.10236717,0.00022191,2]
[342086509,1731426497056,-145.89763283,0.00022191,2]
[342086510,1731426497066,-354.10236717,0.00022191,2]
[342086511,1731426497077,-145.89763283,0.00022191,2]
[342086512,1731426497086,-355.6069619,0.00022191,2]
[342086513,1731426497102,-144.3930381,0.00022191,2]
[342086514,1731426497113,-355.6069619,0.00022191,2]
[342086515,1731426497125,-500.0,0.00022191,2]
[342086516,1731426497136,-460.0530381,0.00022191,2]
[342086517,1731426497145,-39.9469619,0.00022191,2]
[342086518,1731426497156,-460.0530381,0.00022191,2]
[342086519,1731426497165,-39.9469619,0.00022191,2]
[342086520,1731426497177,-460.0530381,0.00022191,2]
[342086521,1731426497186,-39.9469619,0.00022191,2]
[342086522,1731426497199,-460.0530381,0.00022191,2]
[342086523,1731426497208,-39.9469619,0.00022191,2]
[342086524,1731426497223,-339.63520516,0.00022191,2]
[342086525,1731426497234,-120.41783294,0.00022191,2]
[342086526,1731426497243,-408.10489515,0.00022191,2]
[342086527,1731426497254,-500.56074908,0.00022191,2]
[342086528,1731426497269,-170.88435577,0.00022191,2]
[342086529,1731426497278,-500.0,0.00022191,2]
[342086530,1731426497288,-223.71564423,0.00022191,2]
[342086531,1731426497300,-276.28435577,0.00022191,2]
[342086532,1731426497310,-223.71564423,0.00022191,2]
[342086533,1731426497322,-276.28435577,0.00022191,2]
[342086534,1731426497332,-223.71564423,0.00022191,2]
[342086535,1731426497347,-276.28435577,0.00022191,2]
[342086536,1731426497357,-223.71564423,0.00022191,2]
[342086537,1731426497368,-173.15684681,0.00022191,2]
[342086538,1731426497380,-103.12750896,0.00022191,2]
[342086539,1731426497389,-296.12897742,0.00022191,2]
[342086540,1731426497398,-500.0,0.00022191,2]
[342086541,1731426497408,-500.0,0.00022191,2]
[342086542,1731426497417,-191.61351362,0.00022191,2]
[342086543,1731426497429,-308.38648638,0.00022191,2]
[342086544,1731426497439,-191.61351362,0.00022191,2]
[342086545,1731426497454,-308.38648638,0.00022191,2]
[342086546,1731426497464,-191.61351362,0.00022191,2]
[342086547,1731426497480,-315.49775408,0.00022191,2]
[342086548,1731426497489,-184.50224592,0.00022191,2]
[342086549,1731426497500,-464.83775408,0.00022191,2]
[342086550,1731426497509,-35.16224592,0.00022191,2]
[342086551,1731426497522,-464.83775408,0.00022191,2]
[342086552,1731426497531,-35.16224592,0.00022191,2]
[342086553,1731426497542,-464.83775408,0.00022191,2]
[342086554,1731426497551,-35.16224592,0.00022191,2]
[342086555,1731426497563,-464.83775408,0.00022191,2]
[342086556,1731426497572,-35.16224592,0.00022191,2]
[342086557,1731426497583,-466.64775408,0.00022191,2]
[342086558,1731426497595,-33.35224592,0.00022191,2]
[342086559,1731426497607,-466.64775408,0.00022191,2]
[342086560,1731426497615,-33.35224592,0.00022191,2]
[342086561,1731426497626,-466.64775408,0.00022191,2]
[342086562,1731426497635,-33.35224592,0.00022191,2]
[342086563,1731426497650,-466.64775408,0.00022191,2]
[342086564,1731426497659,-500.0,0.00022191,2]
[342086565,1731426497671,-349.01224592,0.00022191,2]
[342086566,1731426497684,-192.26652322,0.00022191,2]
[342086567,1731426497693,-307.73347678,0.00022191,2]
[342086568,1731426497704,-192.26652322,0.00022191,2]
[342086569,1731426497715,-307.73347678,0.00022191,2]
[342086570,1731426497726,-407.71652322,0.00022191,2]
[342086571,1731426497734,-107.10135654,0.00022191,2]
[342086572,1731426497747,-392.89864346,0.00022191,2]
[342086573,1731426497757,-107.10135654,0.00022191,2]
[342086574,1731426497769,-392.89864346,0.00022191,2]
[342086575,1731426497779,-107.10135654,0.00022191,2]
[342086576,1731426497790,-392.89864346,0.00022191,2]
[342086577,1731426497799,-107.10135654,0.00022191,2]
[342086578,1731426497815,-392.89864346,0.00022191,2]
[342086579,1731426497824,-107.10135654,0.00022191,2]
[342086580,1731426497925,-392.89864346,0.00022191,2]
[342086581,1731426497935,-115.96669038,0.00022191,2]
[342086582,1731426497947,-384.03330962,0.00022191,2]
[342086583,1731426497956,-115.96669038,0.00022191,2]
[342086584,1731426497971,-400.81953716,0.00022191,2]
[342086585,1731426497980,-99.18046284,0.00022191,2]
[342086586,1731426497992,-400.81953716,0.00022191,2]
[342086587,1731426498001,-99.18046284,0.00022191,2]
[342086588,1731426498016,-400.81953716,0.00022191,2]
[342086589,1731426498026,-500.0,0.00022191,2]
[342086590,1731426498036,-178.73046284,0.00022191,2]
[342086591,1731426498048,-321.26953716,0.00022191,2]
[342086592,1731426498058,-178.73046284,0.00022191,2]
[342086593,1731426498070,-321.26953716,0.00022191,2]
[342086594,1731426498079,-178.73046284,0.00022191,2]
[342086595,1731426498103,-321.26953716,0.00022191,2]
[342086596,1731426498112,-178.73046284,0.00022191,2]
[342086597,1731426498127,-321.26953716,0.00022191,2]
[342086598,1731426498136,-178.73046284,0.00022191,2]
[342086599,1731426498147,-321.26953716,0.00022191,2]
[342086600,1731426498156,-178.73046284,0.00022191,2]
[342086601,1731426498168,-325.85516059,0.00022191,2]
[342086602,1731426498178,-174.14483941,0.00022191,2]
[342086603,1731426498193,-325.85516059,0.00022191,2]
[342086604,1731426498203,-174.14483941,0.00022191,2]
[342086605,1731426498218,-184.08970511,0.00022191,2]
[342086606,1731426498228,-315.91029489,0.00022191,2]
[342086607,1731426498240,-184.08970511,0.00022191,2]
[342086608,1731426498249,-318.86169774,0.00022191,2]
[342086609,1731426498261,-181.13830226,0.00022191,2]
[342086610,1731426498270,-318.86169774,0.00022191,2]
[342086611,1731426498281,-181.13830226,0.00022191,2]
[342086612,1731426498290,-321.08582124,0.00022191,2]
[342086613,1731426498302,-317.74799681,0.00022191,2]
[342086614,1731426498311,-182.25200319,0.00022191,2]
[342086615,1731426498322,-324.60532933,0.00022191,2]
[342086616,1731426498331,-175.39467067,0.00022191,2]
[342086617,1731426498347,-500.0,0.00022191,2]
[342086618,1731426498358,-317.13532933,0.00022191,2]
[342086619,1731426498368,-182.86467067,0.00022191,2]
[342086620,1731426498379,-317.13532933,0.00022191,2]
[342086621,1731426498388,-182.86467067,0.00022191,2]
[342086622,1731426498403,-317.13532933,0.00022191,2]
[342086623,1731426498412,-332.20467067,0.00022191,2]
[342086624,1731426498423,-167.79532933,0.00022191,2]
[342086625,1731426498432,-332.20467067,0.00022191,2]
[342086626,1731426498447,-531.35183607,0.00022191,2]
[342086627,1731426498462,-153.98349326,0.00022191,2]
[342086628,1731426498472,-346.01650674,0.00022191,2]
[342086629,1731426498483,-360.04349326,0.00022191,2]
[342086630,1731426498492,-139.95650674,0.00022191,2]
[342086631,1731426498503,-360.04349326,0.00022191,2]
[342086632,1731426498512,-139.95650674,0.00022191,2]
[342086633,1731426498524,-467.21349326,0.00022191,2]
[342086634,1731426498533,-121.94205084,0.00022191,2]
[342086635,1731426498544,-378.05794916,0.00022191,2]
[342086636,1731426498553,-123.75205084,0.00022191,2]
[342086637,1731426498565,-376.24794916,0.00022191,2]
[342086638,1731426498574,-123.75205084,0.00022191,2]
[342086639,1731426498594,-376.24794916,0.00022191,2]
[342086640,1731426498603,-123.75205084,0.00022191,2]
[342086641,1731426498614,-500.0,0.00022191,2]
[342086642,1731426498629,-500.0,0.00022191,2]
[342086643,1731426498641,-500.0,0.00022191,2]
[342086644,1731426498652,-467.67794916,0.00022191,2]
[342086645,1731426498661,-32.32205084,0.00022191,2]
[342086646,1731426498682,-467.67794916,0.00022191,2]
[342086647,1731426498691,-32.32205084,0.00022191,2]
[342086648,1731426498702,-467.67794916,0.00022191,2]
[342086649,1731426498712,-32.32205084,0.00022191,2]
[342086650,1731426498723,-500.0,0.00022191,2]
[342086651,1731426498733,-500.0,0.00022191,2]
[342086652,1731426498744,-715.45,0.00022191,2]
[342086653,1731426498755,-500.0,0.00022191,2]
[342086654,1731426498767,-490.07044243,0.00022191,2]
[342086655,1731426498778,-500.0,0.00022191,2]
[342086656,1731426498794,-500.0,0.00022191,2]
[342086657,1731426498812,-500.0,0.00022191,2]
[342086658,1731426498823,-455.01368085,0.00022191,2]
[342086659,1731426498834,-500.0,0.00022191,2]
[342086660,1731426498849,-1.45382588,0.00022191,2]
[342086661,1731426498859,-498.54617412,0.00022191,2]
[342086662,1731426498870,-500.0,0.00022191,2]
[342086663,1731426498883,-144.25382588,0.00022191,2]
[342086664,1731426498892,-11.38220829,0.00022191,2]
[342086665,1731426498904,-488.61779171,0.00022191,2]
[342086666,1731426498914,-11.38220829,0.00022191,2]
[342086667,1731426498926,-151.39585568,0.00022191,2]
[342086668,1731426498936,-348.60414432,0.00022191,2]
[342086669,1731426498947,-151.39585568,0.00022191,2]
[342086670,1731426498957,-348.60414432,0.00022191,2]
[342086671,1731426498968,-500.0,0.00022191,2]
[342086672,1731426498979,-319.71585568,0.00022191,2]
[342086673,1731426498988,-180.28414432,0.00022191,2]
[342086674,1731426499003,-319.71585568,0.00022191,2]
[342086675,1731426499012,-180.28414432,0.00022191,2]
[342086676,1731426499027,-452.46585568,0.00022191,2]
[342086677,1731426499036,-47.53414432,0.00022191,2]
[342086678,1731426499048,-452.46585568,0.00022191,2]
[342086679,1731426499057,-100.35806187,0.00022191,2]
[342086680,1731426499069,-399.64193813,0.00022191,2]
[342086681,1731426499078,-100.35806187,0.00022191,2]
[342086682,1731426499093,-399.64193813,0.00022191,2]
[342086683,1731426499103,-100.35806187,0.00022191,2]
[342086684,1731426499115,-500.0,0.00022191,2]
[342086685,1731426499126,-500.0,0.00022191,2]
[342086686,1731426499138,-500.0,0.00022191,2]
[342086687,1731426499149,-500.0,0.00022191,2]
[342086688,1731426499178,-500.0,0.00022191,2]
[342086689,1731426499212,-500.0,0.00022191,2]
[342086690,1731426499227,-500.0,0.00022191,2]
[342086691,1731426499238,-500.0,0.00022191,2]
[342086692,1731426499249,-458.05193813,0.00022191,2]
[342086693,1731426499258,-41.94806187,0.00022191,2]
[342086694,1731426499270,-458.05193813,0.00022191,2]
[342086695,1731426499278,-41.94806187,0.00022191,2]
[342086696,1731426499293,-458.05193813,0.00022191,2]
[342086697,1731426499303,-41.94806187,0.00022191,2]
[342086698,1731426499315,-458.05193813,0.00022191,2]
[342086699,1731426499324,-41.94806187,0.00022191,2]
[342086700,1731426499335,-458.05193813,0.00022191,2]
[342086701,1731426499349,-41.94806187,0.00022191,2]
[342086702,1731426499361,-500.0,0.00022191,2]
[342086703,1731426499373,-95.17967078,0.00022191,2]
[342086704,1731426499382,-404.82032922,0.00022191,2]
[342086705,1731426499428,-95.17967078,0.00022191,2]
[342086706,1731426499437,-520.52713501,0.00022191,2]
[342086707,1731426499587,-92.73286499,0.00022191,2]
[342086708,1731426499602,-416.76480132,0.00022191,2]
[342086709,1731426499654,-83.23519868,0.00022191,2]
[342086710,1731426499664,-477.90363061,0.00022191,2]
[342086711,1731426499701,-129.33636939,0.00022191,2]
[342086712,1731426499711,-370.66363061,0.00022191,2]
[342086713,1731426499722,-500.0,0.00022191,2]
[342086714,1731426499733,-992.53,0.00022191,2]
[342086715,1731426499746,-500.0,0.00022191,2]
[342086716,1731426499761,-500.0,0.00022191,2]
[342086717,1731426499773,-500.0,0.00022191,2]
[342086718,1731426499784,-432.32659231,0.00022191,2]
[342086719,1731426499795,-500.0,0.00022191,2]
[342086720,1731426499807,-172.47064557,0.00022191,2]
[342086721,1731426499818,-500.0,0.00022191,2]
[342086722,1731426499830,-500.0,0.00022191,2]
[342086723,1731426499844,-511.07489608,0.00022191,2]
[342086724,1731426499859,-500.0,0.00022191,2]
[342086725,1731426499871,-924.39423543,0.00022191,2]
[342086726,1731426499880,-93.14576457,0.00022191,2]
[342086727,1731426499891,-406.85423543,0.00022191,2]
[342086728,1731426499901,-98.12219851,0.00022191,7]
[342086729,1731426499935,-52.87780149,0.00022191,7]
[342086730,1731426499944,-151.0,0.00022191,7]
[342086731,1731426499954,-219.28118053,0.00022191,2]
[342086732,1731426499965,-280.71881947,0.00022191,2]
[342086733,1731426499975,-425.34118053,0.00022191,2]
[342086734,1731426499990,-74.65881947,0.00022191,2]
[342086735,1731426499999,-425.34118053,0.00022191,2]
[342086736,1731426500011,-74.65881947,0.00022191,2]
[342086737,1731426500020,-425.34118053,0.00022191,2]
[342086738,1731426500035,-500.0,0.00022191,2]
[342086739,1731426500046,-360.05881947,0.00022191,2]
[342086740,1731426500055,-247.11118053,0.00022191,2]
[342086741,1731426500067,-252.88881947,0.00022191,2]
[342086742,1731426500076,-247.11118053,0.00022191,2]
[342086743,1731426500087,-252.88881947,0.00022191,2]
[342086744,1731426500100,-247.11118053,0.00022191,2]
[342086745,1731426500111,-252.88881947,0.00022191,2]
[342086746,1731426500120,-247.11118053,0.00022191,2]
[342086747,1731426500135,-252.88881947,0.00022191,2]
[342086748,1731426500145,-530.34,0.00022191,2]
[342086749,1731426500154,-500.0,0.00022191,2]
[342086750,1731426500163,-500.0,0.00022191,2]
[342086751,1731426500172,-308.20118053,0.00022191,2]
[342086752,1731426500184,-500.0,0.00022191,2]
[342086753,1731426500195,-191.79881947,0.00022191,2]
[342086754,1731426500205,-308.20118053,0.00022191,2]
[342086755,1731426500216,-191.79881947,0.00022191,2]
[342086756,1731426500226,-500.0,0.00022191,2]
[342086757,1731426500235,-500.0,0.00022191,2]
[342086758,1731426500245,-500.0,0.00022191,2]
[342086759,1731426500254,-516.84,0.00022191,2]
[342086760,1731426500263,-2985.67118053,0.00022191,2]
[342086761,1731426500274,-1142.8,0.00022191,2]
[342086762,1731426500286,-500.0,0.00022191,2]
[342086763,1731426500297,-500.0,0.00022191,2]
[342086764,1731426500309,-500.0,0.00022191,2]
[342086765,1731426500320,-50.68881947,0.00022191,2]
[342086766,1731426500330,-500.0,0.00022191,2]
[342086767,1731426500339,-500.0,0.00022191,2]
[342086768,1731426500351,-117.63118053,0.00022191,2]
[342086769,1731426500362,-382.36881947,0.00022191,2]
[342086770,1731426500371,-117.63118053,0.00022191,2]
[342086771,1731426500386,-382.36881947,0.00022191,2]
[342086772,1731426500395,-250.38118053,0.00022191,2]
[342086773,1731426500407,-249.61881947,0.00022191,2]
[342086774,1731426500416,-250.38118053,0.00022191,2]
[342086775,1731426500432,-249.61881947,0.00022191,2]
[342086776,1731426500442,-250.38118053,0.00022191,2]
[342086777,1731426500453,-249.61881947,0.00022191,2]
[342086778,1731426500462,-250.38118053,0.00022191,2]
[342086779,1731426500474,-249.61881947,0.00022191,2]
[342086780,1731426500483,-500.0,0.00022191,2]
[342086781,1731426500492,-775.34,0.00022191,2]
[342086782,1731426500501,-500.0,0.00022191,2]
[342086783,1731426500510,-500.0,0.00022191,2]
[342086784,1731426500519,-2033.45118053,0.00022191,2]
[342086785,1731426500530,-500.0,0.00022191,2]
[342086786,1731426500542,-500.0,0.00022191,2]
[342086787,1731426500553,-14.05881947,0.00022191,2]
[342086788,1731426500562,-269.73925274,0.00022191,2]
[342086789,1731426500571,-216.20192779,0.00022191,2]
[342086790,1731426500583,-283.79807221,0.00022191,2]
[342086791,1731426500595,-216.20192779,0.00022191,2]
[342086792,1731426500606,-283.79807221,0.00022191,2]
[342086793,1731426500615,-216.20192779,0.00022191,2]
[342086794,1731426500627,-283.79807221,0.00022191,2]
[342086795,1731426500636,-216.20192779,0.00022191,2]
[342086796,1731426500648,-356.06187053,0.00022191,2]
[342086797,1731426500657,-143.93812947,0.00022191,2]
[342086798,1731426500669,-365.06187053,0.00022191,2]